[Event "11th Dolomiti Open 2020"]
[Site "Forni di Sopra"]
[Date "2020.09.29"]
[Round "5.9"]
[White "Ranfagni, Stefano"]
[Black "Giorgi, Ezio Alberto"]
[Result "1-0"]
[ECO "A11"]
[WhiteElo "1844"]
[BlackElo "1752"]
[Annotator "NA"]
[PlyCount "137"]
[EventDate "2020.09.26"]
[EventType "swiss"]
[EventCountry "ITA"]
[SourceTitle "playchess.com"]
[Source "ChessBase"]
[SourceQuality "1"]
[TimeControl "40/5400+30:1800+30"]

1. c4 {[%emt 0:00:00]} Nf6 {[%emt 0:00:00]} 2. g3 {[%emt 0:00:00]} c6 {[%emt 0:00:17]} 3. Bg2 {[%emt 0:00:00]} d5 {[%emt 0:00:09]} 4. cxd5 {[%emt 0:00:35]} cxd5 {[%emt 0:00:11]} 5. d4 {[%emt 0:00:05]} e6 {[%emt 0:01:00]} 6. Nc3 {[%emt 0:00:31]} Bd7 {[%emt 0:00:51]} 7. Nf3 {[%emt 0:01:09]} Nc6 {[%emt 0:00:33]} 8. O-O {[%emt 0:00:51]} Bb4 {[%emt 0:01:02]} 9. Bd2 {[%emt 0:02:22]} O-O {[%emt 0:00:50]} 10. Rc1 {[%emt 0:02:02]} Rc8 {[%emt 0:03:54]} 11. a3 {[%emt 0:03:31]} Ba5 {[%emt 0:00:41]} 12. e3 {[%emt 0:02:49]} Bxc3 {[%emt 0:02:46]} 13. Bxc3 {[%emt 0:00:40]} Ne4 {[%emt 0:03:35]} 14. Nd2 {[%emt 0:05:26]} Nxc3 {[%emt 0:03:04]} 15. Rxc3 {[%emt 0:01:59]} Ne7 {[%emt 0:04:03]} 16. Rxc8 {[%emt 0:02:26]} Qxc8 {[%emt 0:01:28]} 17. Qb1 {[%emt 0:03:20]} Qb8 {[%emt 0:00:24]} 18. Rc1 {[%emt 0:00:08]} Rc8 {[%emt 0:00:05]} 19. b4 {[%emt 0:01:21]} Rxc1+ {[%emt 0:01:18]} 20. Qxc1 {[%emt 0:00:05]} Qc8 {[%emt 0:00:55]} 21. Qxc8+ {[%emt 0:01:57]} Nxc8 {[%emt 0:00:08]} 22. Kf1 {[%emt 0:04:44]} Kf8 {[%emt 0:00:44]} 23. Ke1 {[%emt 0:00:34]} Ke7 {[%emt 0:00:22]} 24. Kd1 {[%emt 0:02:14]} Ba4+ {[%emt 0:00:55]} 25. Kc1 {[%emt 0:00:08]} Nd6 {[%emt 0:00:55]} 26. Kb2 {[%emt 0:02:20]} b6 {[%emt 0:00:29]} 27. Bf1 {[%emt 0:03:23]} Kd7 {[%emt 0:03:31]} 28. Be2 {[%emt 0:00:41]} Kc6 {[%emt 0:01:17]} 29. Nb1 {[%emt 0:05:00]} Bb5 {[%emt 0:01:37]} 30. Bd1 {[%emt 0:01:26]} Bd3 {[%emt 0:02:42]} 31. Nd2 {[%emt 0:04:11]} Nc4+ {[%emt 0:10:51]} 32. Kc3 {[%emt 0:01:06]} Nxd2 {[%emt 0:00:53]} 33. Kxd2 {[%emt 0:00:07]} Bc4 {[%emt 0:00:57]} 34. Kc3 {[%emt 0:01:53]} h6 {[%emt 0:00:29]} 35. f4 {[%emt 0:02:06]} Bf1 {[%emt 0:02:30]} 36. h4 {[%emt 0:01:41]} Bg2 {[%emt 0:00:54]} 37. a4 {[%emt 0:06:08]} a6 {[%emt 0:01:37]} 38. Be2 {[%emt 0:00:27]} b5 {[%emt 0:00:12]} 39. axb5+ {[%emt 0:00:04]} axb5 {[%emt 0:00:14]} 40. Kd2 {[%emt 0:01:32]} Be4 {[%emt 0:00:14]} 41. Ke1 {[%emt 0:30:31]} Bc2 {[%emt 0:30:27]} 42. Kf2 {[%emt 0:00:07]} Bb3 {[%emt 0:00:21]} 43. g4 {[%emt 0:00:27]} Bc4 {[%emt 0:00:11]} 44. Bd1 {[%emt 0:00:16]} Kd6 {[%emt 0:00:25]} 45. Kg3 {[%emt 0:00:22]} Bd3 {[%emt 0:00:23]} 46. g5 {[%emt 0:00:40]} hxg5 {[%emt 0:00:30]} 47. fxg5 {[%emt 0:00:10]} g6 {[%emt 0:01:28]} 48. Kf4 {[%emt 0:01:24]} Bf1 {[%emt 0:01:19]} 49. h5 {[%emt 0:00:23]} gxh5 {[%emt 0:00:45]} 50. Bxh5 {[%emt 0:00:08]} Ke7 {[%emt 0:00:52]} 51. Ke5 {[%emt 0:00:12]} Bd3 {[%emt 0:00:34]} 52. Bd1 {[%emt 0:01:07]} Bf1 {[%emt 0:01:26]} 53. Bc2 {[%emt 0:00:21]} Be2 {[%emt 0:02:14]} 54. e4 {[%emt 0:03:08]} dxe4 {[%emt 0:01:37]} 55. Bxe4 {[%emt 0:00:05]} Bc4 {[%emt 0:02:15]} 56. Bc6 {[%emt 0:00:56]} Bd3 {[%emt 0:01:01]} 57. Bf3 {[%emt 0:02:01]} Bc4 {[%emt 0:00:20]} 58. Be4 {[%emt 0:00:05]} Bb3 {[%emt 0:06:53]} 59. Bd3 {[%emt 0:12:21]} Bc4 {[%emt 0:01:22]} 60. Be4 {[%emt 0:00:31]} Bb3 {[%emt 0:00:12]} 61. d5 {[%emt 0:00:10]} Bc4 {[%emt 0:05:41]} 62. d6+ {[%emt 0:01:32]} Kd7 {[%emt 0:00:09]} 63. Bh7 {[%emt 0:00:29]} Be2 {[%emt 0:01:43]} 64. Bg8 {[%emt 0:03:04]} Bh5 {[%emt 0:03:26]} 65. Kf6 {[%emt 0:00:32]} Bf3 {[%emt 0:02:51]} 66. Bxf7 {[%emt 0:00:16]} Kxd6 {[%emt 0:02:30]} 67. g6 {[%emt 0:01:39]} Be4 {[%emt 0:00:16]} 68. g7 {[%emt 0:00:07]} Bh7 {[%emt 0:00:48]} 69. Bxe6 {[%emt 0:00:00]} 1-0

[Event "11th Dolomiti Open 2020"]
[Site "Forni di Sopra"]
[Date "2020.09.29"]
[Round "5.10"]
[White "Sirletti, Sonia"]
[Black "Ollari, Luca"]
[Result "1/2-1/2"]
[ECO "E91"]
[WhiteElo "1804"]
[BlackElo "1826"]
[Annotator "NA"]
[PlyCount "67"]
[EventDate "2020.09.26"]
[EventType "swiss"]
[EventCountry "ITA"]
[SourceTitle "playchess.com"]
[Source "ChessBase"]
[SourceQuality "1"]
[TimeControl "40/5400+30:1800+30"]

1. d4 {[%emt 0:00:00]} Nf6 {[%emt 0:00:00]} 2. Nf3 {[%emt 0:00:00]} g6 {[%emt 0:00:00]} 3. c4 {[%emt 0:00:00]} d6 {[%emt 0:00:00]} 4. Nc3 {[%emt 0:00:00]} Bg7 {[%emt 0:00:00]} 5. e4 {[%emt 0:00:10]} O-O {[%emt 0:00:00]} 6. Be2 {[%emt 0:00:11]} Na6 {[%emt 0:00:04]} 7. Qc2 {[%emt 0:05:44]} Nb4 {[%emt 0:10:48]} 8. Qb1 {[%emt 0:09:18]} Ne8 {[%emt 0:07:54]} 9. a3 {[%emt 0:02:04]} Nc6 {[%emt 0:00:11]} 10. Be3 {[%emt 0:07:36]} e5 {[%emt 0:01:49]} 11. d5 {[%emt 0:01:26]} Nd4 {[%emt 0:01:58]} 12. Qd1 {[%emt 0:04:32]} Nxf3+ {[%emt 0:12:47]} 13. Bxf3 {[%emt 0:00:14]} f5 {[%emt 0:00:06]} 14. O-O {[%emt 0:07:52]} f4 {[%emt 0:08:16]} 15. Bd2 {[%emt 0:00:15]} Nf6 {[%emt 0:08:11]} 16. Kh1 {[%emt 0:03:57]} h5 {[%emt 0:01:12]} 17. g3 {[%emt 0:13:56]} Bh6 {[%emt 0:11:40]} 18. gxf4 {[%emt 0:04:05]} exf4 {[%emt 0:02:18]} 19. Rg1 {[%emt 0:04:29]} Kh7 {[%emt 0:01:07]} 20. Qe2 {[%emt 0:08:50]} Bg4 {[%emt 0:01:06]} 21. Bxg4 {[%emt 0:03:55]} Nxg4 {[%emt 0:00:10]} 22. f3 {[%emt 0:00:55]} Ne5 {[%emt 0:00:28]} 23. Nb5 {[%emt 0:03:50]} c5 {[%emt 0:02:10]} 24. b4 {[%emt 0:05:18]} a6 {[%emt 0:00:53]} 25. Nc3 {[%emt 0:00:11]} cxb4 {[%emt 0:02:59]} 26. axb4 {[%emt 0:00:50]} Rc8 {[%emt 0:00:05]} 27. c5 {[%emt 0:05:25]} dxc5 {[%emt 0:00:49]} 28. Na4 {[%emt 0:01:59]} cxb4 {[%emt 0:04:58]} 29. Bxb4 {[%emt 0:00:10]} Re8 {[%emt 0:00:12]} 30. Nc5 {[%emt 0:00:35]} Qb6 {[%emt 0:05:17]} 31. Rab1 {[%emt 0:00:31]} Bf8 {[%emt 0:03:19]} 32. Na4 {[%emt 0:03:51]} Qb5 {[%emt 0:05:31]} 33. Qd3 {[%emt 0:04:21]} Qc4 34. Qxc4 {[%emt 0:00:00]} 1/2-1/2

[Event "11th Dolomiti Open 2020"]
[Site "Forni di Sopra"]
[Date "2020.09.30"]
[Round "6.1"]
[White "Moroni, Luca Jr"]
[Black "Valsecchi, Alessio"]
[Result "1/2-1/2"]
[ECO "D33"]
[WhiteElo "2530"]
[BlackElo "2491"]
[Annotator "ChessBase"]
[PlyCount "33"]
[EventDate "2020.09.26"]
[EventType "swiss"]
[EventCountry "ITA"]
[SourceTitle "playchess.com"]
[Source "ChessBase"]
[SourceQuality "1"]
[TimeControl "40/5400+30:1800+30"]

1. d4 {[%emt 0:00:00]} d5 {[%emt 0:00:14]} 2. c4 {[%emt 0:00:00]} e6 {[%emt 0:00:08]} 3. Nc3 {[%emt 0:00:00]} c5 {[%emt 0:00:09]} 4. cxd5 {[%emt 0:01:03]} exd5 {[%emt 0:00:06]} 5. Nf3 {[%emt 0:00:11]} Nc6 {[%emt 0:00:11]} 6. g3 {[%emt 0:00:47]} Nf6 {[%emt 0:00:13]} 7. Bg2 {[%emt 0:00:14]} cxd4 {[%emt 0:00:32]} 8. Nxd4 {[%emt 0:00:07]} Bc5 {[%emt 0:00:06]} 9. Nxc6 {[%emt 0:01:41]} bxc6 {[%emt 0:00:05]} 10. O-O {[%emt 0:00:11]} O-O {[%emt 0:00:10]} 11. b3 {[%emt 0:00:27]} Re8 {[%emt 0:00:53]} 12. Bb2 {[%emt 0:01:12]} Ba6 {[%emt 0:00:16]} 13. Qc2 {[%emt 0:06:26]} Bb6 {[%emt 0:00:28]} 14. Bf3 {[%emt 0:02:07]} Rc8 {[%emt 0:07:11]} 15. Rfd1 {[%emt 0:08:43]} Qe7 {[%emt 0:02:21]} 16. e3 {[%emt 0:08:15]} Qe6 {[%emt 0:07:20]} 17. Na4 {[%emt 0:23:56]} 1/2-1/2

[Event "11th Dolomiti Open 2020"]
[Site "Forni di Sopra"]
[Date "2020.09.30"]
[Round "6.2"]
[White "Andolfatto, Maria"]
[Black "Basso, Pier Luigi"]
[Result "0-1"]
[ECO "A11"]
[WhiteElo "2002"]
[BlackElo "2603"]
[Annotator "ChessBase"]
[PlyCount "62"]
[EventDate "2020.09.26"]
[EventType "swiss"]
[EventCountry "ITA"]
[SourceTitle "playchess.com"]
[Source "ChessBase"]
[SourceQuality "1"]
[TimeControl "40/5400+30:1800+30"]

1. c4 {[%emt 0:00:00]} c6 {[%emt 0:00:00]} 2. Nf3 {[%emt 0:00:00]} d5 {[%emt 0:00:00]} 3. g3 {[%emt 0:00:00]} Nf6 {[%emt 0:00:00]} 4. Bg2 {[%emt 0:00:03]} dxc4 {[%emt 0:00:00]} 5. O-O {[%emt 0:00:31]} Nbd7 {[%emt 0:00:00]} 6. Qc2 {[%emt 0:00:18]} Nb6 {[%emt 0:00:06]} 7. a4 {[%emt 0:00:11]} a5 {[%emt 0:00:07]} 8. Na3 {[%emt 0:00:19]} Be6 {[%emt 0:00:25]} 9. Ng5 {[%emt 0:00:29]} Qd7 {[%emt 0:00:07]} 10. Rd1 {[%emt 0:10:28]} Nfd5 {[%emt 0:19:49]} 11. Nxc4 {[%emt 0:11:47]} Nb4 {[%emt 0:02:43]} 12. Nxb6 {[%emt 0:02:47]} Nxc2 {[%emt 0:00:06]} 13. Nxd7 {[%emt 0:00:22]} Kxd7 {[%emt 0:09:11]} 14. Nxe6 {[%emt 0:01:58]} Nxa1 {[%emt 0:00:12]} 15. Ng5 {[%emt 0:06:31]} Ke8 {[%emt 0:09:10]} 16. Be4 {[%emt 0:10:36]} h6 {[%emt 0:04:27]} 17. Nf3 {[%emt 0:00:39]} Nb3 {[%emt 0:00:08]} 18. d4 {[%emt 0:01:45]} Nxc1 {[%emt 0:00:55]} 19. Rxc1 {[%emt 0:00:06]} Rb8 {[%emt 0:13:50]} 20. Rc5 {[%emt 0:10:18]} e6 {[%emt 0:00:07]} 21. Rxa5 {[%emt 0:01:51]} Bd6 {[%emt 0:00:07]} 22. Ra7 {[%emt 0:08:15]} Kd7 {[%emt 0:00:59]} 23. Nd2 {[%emt 0:00:50]} Kc7 {[%emt 0:00:24]} 24. Nc4 {[%emt 0:00:43]} Bb4 {[%emt 0:02:39]} 25. a5 {[%emt 0:04:19]} Ra8 {[%emt 0:00:11]} 26. Rxa8 {[%emt 0:00:21]} Rg8 {[%emt 0:37:17]} 27. Rb8 Rxb8 {[%emt 0:00:00]} 28. Ne5 {[%emt 0:01:36]} Ra8 {[%emt 0:00:00]} 29. Nd3 Rxa5 {[%emt 0:00:00]} 30. f4 {[%emt 0:06:46]} Bd6 {[%emt 0:00:00]} 31. Kg2 {[%emt 0:02:52]} b6 {[%emt 0:00:00]} 0-1

[Event "11th Dolomiti Open 2020"]
[Site "Forni di Sopra"]
[Date "2020.09.30"]
[Round "6.3"]
[White "Heberla, Bartlomiej"]
[Black "Barp, Alberto"]
[Result "1-0"]
[ECO "D61"]
[WhiteElo "2566"]
[BlackElo "2377"]
[Annotator "ChessBase"]
[PlyCount "114"]
[EventDate "2020.09.26"]
[EventType "swiss"]
[EventCountry "ITA"]
[SourceTitle "playchess.com"]
[Source "ChessBase"]
[SourceQuality "1"]
[TimeControl "40/5400+30:1800+30"]

1. Nf3 {[%emt 0:06:43]} d5 {[%emt 0:00:00]} 2. d4 {[%emt 0:00:08]} Nf6 {[%emt 0:00:00]} 3. c4 {[%emt 0:00:06]} e6 {[%emt 0:00:00]} 4. Bg5 {[%emt 0:00:04]} Be7 {[%emt 0:06:41]} 5. e3 {[%emt 0:00:41]} Nbd7 {[%emt 0:00:31]} 6. Nc3 {[%emt 0:00:21]} h6 {[%emt 0:00:13]} 7. Bh4 {[%emt 0:00:09]} O-O {[%emt 0:00:26]} 8. Qc2 {[%emt 0:00:05]} c5 {[%emt 0:04:57]} 9. cxd5 {[%emt 0:00:26]} Nxd5 {[%emt 0:01:26]} 10. Bxe7 {[%emt 0:00:10]} Qxe7 {[%emt 0:05:00]} 11. Nxd5 {[%emt 0:00:14]} exd5 {[%emt 0:00:02]} 12. dxc5 {[%emt 0:00:10]} Nxc5 {[%emt 0:01:00]} 13. Be2 {[%emt 0:00:07]} Bg4 {[%emt 0:01:09]} 14. O-O {[%emt 0:00:07]} Rac8 {[%emt 0:04:47]} 15. Rac1 {[%emt 0:00:13]} Rfd8 {[%emt 0:11:44]} 16. Qc3 {[%emt 0:27:24]} Ne4 {[%emt 0:21:01]} 17. Qd4 {[%emt 0:00:32]} Rxc1 {[%emt 0:01:07]} 18. Rxc1 {[%emt 0:00:04]} Qf6 {[%emt 0:00:10]} 19. Qxf6 {[%emt 0:15:56]} Nxf6 {[%emt 0:01:42]} 20. Nd4 {[%emt 0:00:15]} Bxe2 {[%emt 0:06:23]} 21. Nxe2 {[%emt 0:02:06]} Kf8 {[%emt 0:00:08]} 22. Nd4 {[%emt 0:03:40]} g6 {[%emt 0:02:41]} 23. f3 {[%emt 0:08:17]} Ke7 {[%emt 0:01:28]} 24. Kf2 {[%emt 0:05:17]} a6 {[%emt 0:03:01]} 25. Nb3 {[%emt 0:12:01]} Rd7 {[%emt 0:06:59]} 26. Ke2 {[%emt 0:05:24]} Ne8 {[%emt 0:03:55]} 27. Rc5 {[%emt 0:05:04]} b6 {[%emt 0:04:58]} 28. Rc6 {[%emt 0:00:27]} Rd6 {[%emt 0:00:30]} 29. Rc3 {[%emt 0:00:45]} Kd7 {[%emt 0:02:53]} 30. Nd4 {[%emt 0:00:11]} Nc7 {[%emt 0:00:17]} 31. Ra3 {[%emt 0:01:55]} Rf6 {[%emt 0:00:56]} 32. g4 {[%emt 0:01:16]} Rd6 {[%emt 0:00:30]} 33. h4 {[%emt 0:00:14]} Rf6 {[%emt 0:02:04]} 34. f4 {[%emt 0:01:14]} Rd6 {[%emt 0:01:57]} 35. Nf3 {[%emt 0:01:52]} a5 {[%emt 0:01:31]} 36. Ne5+ {[%emt 0:00:48]} Ke7 {[%emt 0:00:07]} 37. Rc3 {[%emt 0:00:10]} Ne6 {[%emt 0:00:16]} 38. Rc8 {[%emt 0:01:13]} d4 {[%emt 0:05:30]} 39. Rh8 {[%emt 0:00:03]} dxe3 {[%emt 0:00:39]} 40. Kxe3 {[%emt 0:00:02]} Rd1 {[%emt 0:00:49]} 41. Rh7 {[%emt 0:31:32]} Re1+ {[%emt 0:06:25]} 42. Kf2 {[%emt 0:00:00]} Re4 {[%emt 0:02:41]} 43. Rxf7+ {[%emt 0:00:00]} Ke8 {[%emt 0:00:10]} 44. Rf6 {[%emt 0:00:00]} Rxf4+ {[%emt 0:11:01]} 45. Rxf4 {[%emt 0:00:00]} Nxf4 {[%emt 0:00:04]} 46. Kf3 {[%emt 0:05:34]} Nd5 {[%emt 0:04:17]} 47. a3 {[%emt 0:00:00]} a4 {[%emt 0:03:25]} 48. Nxg6 {[%emt 0:00:58]} b5 {[%emt 0:00:50]} 49. Ke4 {[%emt 0:01:50]} Nf6+ {[%emt 0:02:00]} 50. Kf5 {[%emt 0:00:45]} Nd5 {[%emt 0:00:10]} 51. Ne5 {[%emt 0:00:59]} Ke7 {[%emt 0:02:44]} 52. h5 {[%emt 0:04:02]} Ne3+ {[%emt 0:00:29]} 53. Kg6 {[%emt 0:00:30]} Ke6 {[%emt 0:00:05]} 54. g5 {[%emt 0:00:11]} Nf5 {[%emt 0:02:30]} 55. gxh6 {[%emt 0:01:36]} Ne7+ {[%emt 0:00:34]} 56. Kg5 {[%emt 0:02:37]} Kxe5 {[%emt 0:00:17]} 57. h7 {[%emt 0:00:06]} Kd5 {[%emt 0:01:20]} 1-0

[Event "11th Dolomiti Open 2020"]
[Site "Forni di Sopra"]
[Date "2020.09.30"]
[Round "6.4"]
[White "Blohberger, Felix"]
[Black "Bellia, Fabrizio"]
[Result "1/2-1/2"]
[ECO "C47"]
[WhiteElo "2467"]
[BlackElo "2421"]
[Annotator "ChessBase"]
[PlyCount "144"]
[EventDate "2020.09.26"]
[EventType "swiss"]
[EventCountry "ITA"]
[SourceTitle "playchess.com"]
[Source "ChessBase"]
[SourceQuality "1"]
[TimeControl "40/5400+30:1800+30"]

1. e4 {[%emt 0:00:42]} e5 {[%emt 0:00:00]} 2. Nf3 {[%emt 0:00:08]} Nc6 {[%emt 0:00:00]} 3. Nc3 {[%emt 0:00:12]} Nf6 {[%emt 0:00:00]} 4. a3 {[%emt 0:00:14]} d5 {[%emt 0:05:18]} 5. Bb5 {[%emt 0:00:08]} d4 {[%emt 0:04:18]} 6. Ne2 {[%emt 0:00:07]} Bd6 {[%emt 0:00:59]} 7. d3 {[%emt 0:00:07]} O-O {[%emt 0:02:45]} 8. Bc4 {[%emt 0:00:04]} Qe7 {[%emt 0:07:58]} 9. O-O {[%emt 0:02:41]} Be6 {[%emt 0:02:44]} 10. Bxe6 {[%emt 0:00:06]} Qxe6 {[%emt 0:00:17]} 11. c3 {[%emt 0:00:45]} dxc3 {[%emt 0:03:06]} 12. bxc3 {[%emt 0:00:06]} Rfe8 {[%emt 0:10:59]} 13. Ng3 {[%emt 0:01:09]} Rad8 {[%emt 0:02:22]} 14. Qc2 {[%emt 0:01:21]} h6 {[%emt 0:01:18]} 15. h3 {[%emt 0:02:06]} Na5 {[%emt 0:01:31]} 16. Rb1 {[%emt 0:01:37]} b6 {[%emt 0:03:19]} 17. Nf5 {[%emt 0:08:57]} Bf8 {[%emt 0:02:49]} 18. Rd1 {[%emt 0:04:52]} Nd7 {[%emt 0:10:20]} 19. a4 {[%emt 0:07:44]} Nc5 {[%emt 0:01:49]} 20. Be3 {[%emt 0:04:31]} Qc6 {[%emt 0:05:03]} 21. Ra1 {[%emt 0:03:33]} Ncb3 {[%emt 0:03:44]} 22. Ra2 {[%emt 0:01:14]} Nc5 {[%emt 0:01:07]} 23. h4 {[%emt 0:16:41]} Qe6 {[%emt 0:01:31]} 24. Raa1 {[%emt 0:08:45]} Nd7 {[%emt 0:06:36]} 25. Rab1 {[%emt 0:06:05]} Nf6 {[%emt 0:01:53]} 26. Rb5 {[%emt 0:01:39]} Ng4 {[%emt 0:00:45]} 27. Bc1 {[%emt 0:04:57]} a6 {[%emt 0:04:03]} 28. Rb1 {[%emt 0:00:36]} Bc5 {[%emt 0:00:35]} 29. Rf1 {[%emt 0:00:54]} Qc6 {[%emt 0:06:20]} 30. Nh2 {[%emt 0:04:03]} Nf6 {[%emt 0:03:12]} 31. Bb2 {[%emt 0:10:40]} Nb7 {[%emt 0:00:53]} 32. Kh1 {[%emt 0:02:00]} Bf8 {[%emt 0:03:11]} 33. Rfd1 {[%emt 0:02:40]} Nc5 {[%emt 0:01:08]} 34. a5 {[%emt 0:03:39]} b5 {[%emt 0:01:04]} 35. f3 {[%emt 0:00:25]} g6 {[%emt 0:01:50]} 36. Ne3 {[%emt 0:00:34]} Na4 {[%emt 0:01:35]} 37. Ba1 {[%emt 0:00:12]} Nh5 {[%emt 0:00:54]} 38. Nhf1 {[%emt 0:00:41]} Qf6 {[%emt 0:00:18]} 39. Qf2 {[%emt 0:00:17]} Bc5 {[%emt 0:00:48]} 40. d4 {[%emt 0:01:29]} exd4 {[%emt 0:00:44]} 41. cxd4 {[%emt 0:30:45]} Bf8 {[%emt 0:02:15]} 42. d5 {[%emt 0:00:00]} Nc3 {[%emt 0:06:43]} 43. Ng4 {[%emt 0:00:00]} Qh8 {[%emt 0:00:36]} 44. Rdc1 {[%emt 0:00:00]} b4 {[%emt 0:01:25]} 45. Qc2 {[%emt 0:00:00]} Nf6 {[%emt 0:08:48]} 46. Nge3 {[%emt 0:00:00]} Nxb1 {[%emt 0:06:00]} 47. Qxb1 {[%emt 0:00:00]} Rd7 {[%emt 0:03:16]} 48. e5 {[%emt 0:00:00]} Rxd5 {[%emt 0:01:08]} 49. exf6 {[%emt 0:00:00]} Rxa5 {[%emt 0:00:41]} 50. Rxc7 {[%emt 0:00:00]} Qh7 {[%emt 0:01:04]} 51. Bd4 {[%emt 0:02:49]} Rd8 {[%emt 0:01:04]} 52. Bb2 {[%emt 0:01:26]} Rc5 {[%emt 0:00:38]} 53. Ra7 {[%emt 0:00:35]} g5 {[%emt 0:01:56]} 54. Qa2 {[%emt 0:00:43]} gxh4 {[%emt 0:00:35]} 55. Qxa6 {[%emt 0:00:31]} Qg6 {[%emt 0:00:33]} 56. Ra8 {[%emt 0:00:56]} Rxa8 {[%emt 0:00:39]} 57. Qxa8 {[%emt 0:00:05]} Qg5 {[%emt 0:00:23]} 58. Qe4 {[%emt 0:00:35]} Ra5 {[%emt 0:00:37]} 59. Nc4 {[%emt 0:01:15]} Ra2 {[%emt 0:00:49]} 60. Qb1 {[%emt 0:00:44]} h3 {[%emt 0:00:12]} 61. gxh3 {[%emt 0:00:40]} Bc5 {[%emt 0:00:44]} 62. Nfd2 {[%emt 0:00:15]} Rxb2 {[%emt 0:00:55]} 63. Nxb2 {[%emt 0:00:50]} Qxd2 {[%emt 0:00:06]} 64. Nd3 {[%emt 0:00:34]} Bd6 {[%emt 0:00:13]} 65. Qg1+ {[%emt 0:00:35]} Kf8 {[%emt 0:00:20]} 66. Qg7+ {[%emt 0:00:29]} Ke8 {[%emt 0:00:03]} 67. Qg8+ {[%emt 0:00:25]} Bf8 {[%emt 0:00:07]} 68. Qg4 {[%emt 0:00:17]} Qd1+ {[%emt 0:01:59]} 69. Kg2 {[%emt 0:00:04]} Qc2+ {[%emt 0:00:02]} 70. Kh1 {[%emt 0:00:26]} Qd1+ {[%emt 0:01:20]} 71. Kg2 {[%emt 0:00:03]} Qc2+ {[%emt 0:00:12]} 72. Kh1 {[%emt 0:00:04]} Qd1+ {[%emt 0:00:46]} 1/2-1/2

[Event "11th Dolomiti Open 2020"]
[Site "Forni di Sopra"]
[Date "2020.09.30"]
[Round "6.5"]
[White "Gumularz, Szymon"]
[Black "Marchesich, Giovanni"]
[Result "1-0"]
[ECO "A45"]
[WhiteElo "2518"]
[BlackElo "2063"]
[Annotator "ChessBase"]
[PlyCount "59"]
[EventDate "2020.09.26"]
[EventType "swiss"]
[EventCountry "ITA"]
[SourceTitle "playchess.com"]
[Source "ChessBase"]
[SourceQuality "1"]
[TimeControl "40/5400+30:1800+30"]

1. d4 {[%emt 0:00:00]} Nf6 {[%emt 0:00:00]} 2. Bf4 {[%emt 0:00:00]} g6 {[%emt 0:00:32]} 3. Nc3 {[%emt 0:00:00]} d5 {[%emt 0:01:08]} 4. e3 {[%emt 0:00:00]} Bg7 {[%emt 0:01:04]} 5. h4 {[%emt 0:00:02]} h5 {[%emt 0:01:10]} 6. Nf3 {[%emt 0:04:23]} O-O {[%emt 0:01:42]} 7. Be2 {[%emt 0:00:10]} c5 {[%emt 0:01:28]} 8. dxc5 {[%emt 0:03:35]} Nbd7 {[%emt 0:02:36]} 9. Nb5 {[%emt 0:46:00]} Nxc5 {[%emt 0:17:07]} 10. Nc7 {[%emt 0:00:11]} Rb8 {[%emt 0:00:56]} 11. Nb5 {[%emt 0:00:30]} Ra8 {[%emt 0:11:18]} 12. Nc7 {[%emt 0:06:43]} Rb8 {[%emt 0:02:59]} 13. Ne8 {[%emt 0:04:34]} Nxe8 {[%emt 0:06:14]} 14. Bxb8 {[%emt 0:00:04]} Bxb2 {[%emt 0:01:12]} 15. Rb1 {[%emt 0:00:08]} Qa5+ {[%emt 0:03:39]} 16. Kf1 {[%emt 0:00:10]} Na4 {[%emt 0:05:12]} 17. Qd2 {[%emt 0:02:01]} Bc3 {[%emt 0:05:53]} 18. Qc1 {[%emt 0:00:56]} Nf6 {[%emt 0:03:02]} 19. Rb5 {[%emt 0:06:55]} Qd8 {[%emt 0:00:21]} 20. Bxa7 {[%emt 0:00:27]} Bd7 {[%emt 0:02:32]} 21. Rb3 {[%emt 0:11:18]} Ne4 {[%emt 0:02:43]} 22. Bd4 {[%emt 0:00:28]} Qc7 {[%emt 0:01:57]} 23. g3 {[%emt 0:03:46]} e5 {[%emt 0:01:40]} 24. Nxe5 {[%emt 0:00:34]} Nd2+ {[%emt 0:01:34]} 25. Kg2 {[%emt 0:00:06]} Bxd4 {[%emt 0:01:13]} 26. exd4 {[%emt 0:00:17]} Nxb3 {[%emt 0:00:25]} 27. cxb3 {[%emt 0:00:13]} Qxc1 {[%emt 0:00:34]} 28. Rxc1 {[%emt 0:00:04]} Nb6 {[%emt 0:00:14]} 29. Nxd7 {[%emt 0:00:46]} Nxd7 {[%emt 0:00:05]} 30. Rc7 {[%emt 0:00:05]} 1-0

[Event "11th Dolomiti Open 2020"]
[Site "Forni di Sopra"]
[Date "2020.09.30"]
[Round "6.6"]
[White "Blake, J Morgan"]
[Black "Seresin, Francesco"]
[Result "1/2-1/2"]
[ECO "B19"]
[WhiteElo "1982"]
[BlackElo "2371"]
[Annotator "ChessBase"]
[PlyCount "86"]
[EventDate "2020.09.26"]
[EventType "swiss"]
[EventCountry "ITA"]
[SourceTitle "playchess.com"]
[Source "ChessBase"]
[SourceQuality "1"]
[TimeControl "40/5400+30:1800+30"]

1. e4 {[%emt 0:18:21]} c6 {[%emt 0:00:17]} 2. d4 {[%emt 0:00:12]} d5 {[%emt 0:00:08]} 3. Nd2 {[%emt 0:00:04]} dxe4 {[%emt 0:00:35]} 4. Nxe4 {[%emt 0:00:18]} Bf5 {[%emt 0:00:08]} 5. Ng3 {[%emt 0:00:07]} Bg6 {[%emt 0:00:09]} 6. h4 {[%emt 0:00:21]} h6 {[%emt 0:00:31]} 7. Nf3 {[%emt 0:00:23]} Nd7 {[%emt 0:01:24]} 8. h5 {[%emt 0:01:08]} Bh7 {[%emt 0:00:07]} 9. Bd3 {[%emt 0:00:05]} Bxd3 {[%emt 0:00:08]} 10. Qxd3 {[%emt 0:00:04]} e6 {[%emt 0:00:11]} 11. Bd2 {[%emt 0:01:54]} Ngf6 {[%emt 0:00:43]} 12. O-O-O {[%emt 0:02:01]} Qc7 {[%emt 0:00:15]} 13. Ne4 {[%emt 0:05:50]} O-O-O {[%emt 0:00:20]} 14. Nxf6 {[%emt 0:13:46]} Nxf6 {[%emt 0:02:42]} 15. Qe2 {[%emt 0:01:57]} Rd5 {[%emt 0:02:42]} 16. g3 {[%emt 0:06:39]} Rxh5 {[%emt 0:17:56]} 17. Rxh5 {[%emt 0:05:29]} Nxh5 {[%emt 0:00:43]} 18. Qe5 {[%emt 0:00:02]} Qxe5 {[%emt 0:11:15]} 19. dxe5 {[%emt 0:06:02]} g6 {[%emt 0:12:14]} 20. Rh1 {[%emt 0:04:10]} Bc5 {[%emt 0:03:07]} 21. g4 {[%emt 0:01:32]} Ng7 {[%emt 0:00:09]} 22. Rxh6 {[%emt 0:02:13]} Rxh6 {[%emt 0:02:05]} 23. Bxh6 {[%emt 0:00:03]} Ne8 {[%emt 0:00:06]} 24. Ng5 {[%emt 0:04:57]} f6 {[%emt 0:10:21]} 25. Nxe6 {[%emt 0:10:24]} Bxf2 {[%emt 0:00:59]} 26. exf6 {[%emt 0:00:21]} Nxf6 {[%emt 0:00:33]} 27. Nf8 {[%emt 0:00:33]} Nxg4 {[%emt 0:01:20]} 28. Bf4 {[%emt 0:00:24]} Bd4 {[%emt 0:00:28]} 29. Nxg6 {[%emt 0:00:18]} Kd7 {[%emt 0:00:16]} 30. Nh4 {[%emt 0:03:47]} Ke6 {[%emt 0:00:27]} 31. Nf3 {[%emt 0:01:16]} Bf6 {[%emt 0:00:28]} 32. c3 {[%emt 0:03:49]} Kd5 {[%emt 0:00:27]} 33. Nd2 {[%emt 0:00:31]} a6 {[%emt 0:00:51]} 34. Kc2 {[%emt 0:00:19]} b5 {[%emt 0:00:34]} 35. b3 {[%emt 0:00:41]} c5 {[%emt 0:02:32]} 36. c4+ {[%emt 0:01:46]} Kc6 {[%emt 0:04:43]} 37. cxb5+ {[%emt 0:01:57]} axb5 {[%emt 0:00:28]} 38. a4 {[%emt 0:00:33]} Bd4 {[%emt 0:06:12]} 39. axb5+ {[%emt 0:00:43]} Kxb5 {[%emt 0:00:05]} 40. Nc4 {[%emt 0:00:43]} Nf6 {[%emt 0:00:52]} 41. Nd6+ {[%emt 0:31:26]} Kc6 {[%emt 0:30:21]} 42. Nc4 {[%emt 0:02:06]} Nd5 {[%emt 0:00:06]} 43. Bd2 {[%emt 0:00:19]} Kb5 {[%emt 0:00:10]} 1/2-1/2